Workbook

Sheet Capa
A1: ORÇAMENTO DETALHADO
A3: SINAPI 04/2026 - Minas Gerais
A4: SICRO 01/2026 - Minas Gerais
A16: 3 | B16: Inclusão de fórmulas e coluna de desconto | E16: 2026-06-18 | F16: FPC | G16: FPC
A17: 2 | B17: Atualização da base de preços | E17: 2026-05-25 | F17: FPC | G17: FPC
A18: 1 | B18: Revisão interna | E18: 2025-11-04 | F18: FPC | G18: FPC
A19: 0 | B19: Emissão inicial | E19: 2025-10-24 | F19: FPC | G19: FPC
A20: Revisão | B20: Descrição | E20: Data | F20: Execução | G20: Aprovação
E21: Resp. Técnico:
E25: Fabrício Pereira Cruz
E26: Eng.º Naval / RNP 1517649730
A31: Escopo:
A32: Construção de ferry boat para atendimento à demanda de transporte de travessia de passageiros do município de Morada Nova de Minas, Estado de Minas Gerais
A36: Objeto: | E36: Arquivo:
A37: FERRY BOAT 42 M | E37: 25.PJ.129-01-PN.06-R3

Sheet Desconto
C2: Insira o desconto na célula abaixo.
B3: Desconto | C3: 0

Sheet Resumo
A1: ORÇAMENTO SINTÉTICO | Y1: =Objeto -> FERRY BOAT 42 M
A2: Item | B2: Descrição | C2: Total c/ BDI | D2: Peso | Y2: =Arquivo -> 25.PJ.129.01-PN.05-R3
A3: 1 | B3: MOBILIZAÇÃO E DESMOBILIZAÇÃO | C3: =Sintético!J4 -> 94651.2 | D3: =ROUND(C3/$C$16,4) -> 0.0107
A4: 2 | B4: ADMINISTRAÇÃO | C4: =Sintético!J6 -> 966864.7 | D4: 0.1098
A5: 3 | B5: ESTRUTURA | C5: =Sintético!J8 -> 4050362.59 | D5: 0.4598
A6: 4 | B6: ACESSÓRIOS | C6: =Sintético!J13 -> 158856.86 | D6: 0.018
A7: 5 | B7: PINTURA | C7: =Sintético!J18 -> 534688.31 | D7: 0.0607
A8: 6 | B8: REDES DE TUBULAÇÕES | C8: =Sintético!J21 -> 231215.49 | D8: 0.0262
A9: 7 | B9: SISTEMA ELÉTRICO | C9: =Sintético!J49 -> 55392.53 | D9: 0.0063
A10: 8 | B10: MÁQUINAS E EQUIPAMENTOS | C10: =Sintético!J53 -> 434331.91 | D10: 0.0493
A11: 9 | B11: SEGURANÇA E SALVATAGEM | C11: =Sintético!J57 -> 38899.88 | D11: 0.0044
A12: 10 | B12: ACABAMENTO | C12: =Sintético!J61 -> 9128.25 | D12: 0.001
A13: 11 | B13: SERVIÇOS COMPLEMENTARES | C13: =Sintético!J64 -> 82288.03 | D13: 0.0093
B16: Total c/ BDI = | C16: 8808784.31
B17: Total c/ BDI e desconto = | C17: =Sintético!J68 -> 8808784.313

Sheet Sintético
A1: ORÇAMENTO DETALHADO | X1: =Objeto -> FERRY BOAT 42 M
E2: BDI = | F2: 0.3233 | G2: Desconto | H2: =Desconto!C3 -> 0
A3: Item | B3: Código | C3: Banco | D3: Descrição | E3: Und | F3: Quant. | G3: Valor Unit (CPU) | H3: Custo total | I3: Desconto | J3: Total com Desconto | X3: =Arquivo -> 25.PJ.129-01-PN.06-R3
A4: 1 | D4: MOBILIZAÇÃO E DESMOBILIZAÇÃO | H4: =TRUNC(H5,2) -> 94651.2 | J4: =SUM(J5) -> 94651.2
A5: 1.1 | B5: E9041 | C5: SICRO3 | D5: Caminhão guindauto com capacidade de elevação de 11,9 t e carroceria de 11,5 t - 188 kW | E5: H | F5: 240 | G5: 394.38 | H5: =G5*F5 -> 94651.2 | I5: =H2 -> 0 | J5: =TRUNC(G5*(1-I5)*F5,2) -> 94651.2
A6: 2 | D6: ADMINISTRAÇÃO | H6: =TRUNC(H7,2) -> 966864.7 | J6: =SUM(J7) -> 966864.7
A7: 2.1 | B7: 25-PJ.129-01 | C7: Próprio | D7: Administração local | E7: mês | F7: 10 | G7: 96686.47 | H7: 966864.7 | I7: =H2 -> 0 | J7: =TRUNC(G7*(1-I7)*F7,2) -> 966864.7
A8: 3 | D8: ESTRUTURA | H8: =TRUNC(SUM(H9:H12),2) -> 4050362.59 | J8: =SUM(J9:J12) -> 4050362.59
A9: 3.1 | B9: CDV.01 | C9: Próprio | D9: Beneficiamento de aço naval (soldagem, corte, dobra e montagem) | E9: kg | F9: 129964 | G9: 22.62 | H9: 2939785.68 | I9: =$H$2 -> 0 | J9: =TRUNC(G9*(1-I9)*F9,2) -> 2939785.68
A10: 3.2 | B10: M1376 | C10: SICRO3 | D10: Chapa fina em aço ASTM A36 | E10: kg | F10: 91378.99 | G10: 9.25 | H10: =TRUNC(G10*F10,2) -> 845255.65 | I10: =$H$2 -> 0 | J10: =TRUNC(G10*(1-I10)*F10,2) -> 845255.65
A11: 3.3 | B11: M0682 | C11: SICRO3 | D11: Aço em perfis ASTM A36 | E11: kg | F11: 25368.8 | G11: 9.95 | H11: 252419.56 | I11: =$H$2 -> 0 | J11: =TRUNC(G11*(1-I11)*F11,2) -> 252419.56
A12: 3.4 | B12: M0395 | C12: SICRO3 | D12: Chapa de alumínio - E = 1,5 mm | E12: m² | F12: 81.9 | G12: 157.53 | H12: =TRUNC(G12*F12,2) -> 12901.7 | I12: =$H$2 -> 0 | J12: =TRUNC(G12*(1-I12)*F12,2) -> 12901.7
A13: 4 | D13: ACESSÓRIOS | H13: =TRUNC(SUM(H14:H17),2) -> 158856.86 | J13: =SUM(J14:J17) -> 158856.86
A14: 4.1 | B14: 25-PJ.129-13 | C14: Próprio | D14: Cabeço duplo 10" - Fabricação e montagem (inclui o fornecimento do aço) | E14: un | F14: 4 | G14: 6206.61 | H14: 24826.44 | I14: =$H$2 -> 0 | J14: =TRUNC(G14*(1-I14)*F14,2) -> 24826.44
A15: 4.2 | B15: 25-PJ.129-14 | C15: Próprio | D15: Porta de visita 600x600, c/ parafusos e borracha de vedação | E15: unid | F15: 10 | G15: 941.33 | H15: 9413.3 | I15: =$H$2 -> 0 | J15: =TRUNC(G15*(1-I15)*F15,2) -> 9413.3
A16: 4.3 | B16: 25-PJ.129-15 | C16: Próprio | D16: Guincho 500 kg (fabricação, montagem e instalação) com âncora de 100 kg e linha de ancoragem | E16: unid | F16: 2 | G16: 23847.58 | H16: 47695.16 | I16: =$H$2 -> 0 | J16: =TRUNC(G16*(1-I16)*F16,2) -> 47695.16
A17: 4.4 | B17: 25-PJ.129-18 | C17: Próprio | D17: Guincho de 1.000 kg (fabricação, montagem e instalação) com acessórios da rampa | E17: unid | F17: 2 | G17: 38460.98 | H17: 76921.96 | I17: =$H$2 -> 0 | J17: =TRUNC(G17*(1-I17)*F17,2) -> 76921.96
A18: 5 | D18: PINTURA | H18: =TRUNC(SUM(H19:H20),2) -> 534688.31 | J18: =SUM(J19:J20) -> 534688.31
A19: 5.1 | B19: 7107378 | C19: SICRO3 | D19: Tratamento superficial e pintura do fundo do flutuante | E19: m² | F19: 516.65 | G19: 186.75 | H19: =TRUNC(G19*F19,2) -> 96484.38 | I19: =$H$2 -> 0 | J19: =TRUNC(G19*(1-I19)*F19,2) -> 96484.38
A20: 5.2 | B20: 7107384 | C20: SICRO3 | D20: Tratamento superficial e pintura da ponte e demais estruturas metálicas navais - exceto fundo do flutuante | E20: m² | F20: 3709.82 | G20: 118.12 | H20: =TRUNC(G20*F20,2) -> 438203.93 | I20: =$H$2 -> 0 | J20: =TRUNC(G20*(1-I20)*F20,2) -> 438203.93
A21: 6 | D21: REDES DE TUBULAÇÕES | H21: =TRUNC(SUM(H22,H29,H34,H43),2) -> 231215.49 | J21: =SUM(J22,J29,J34,J43) -> 231215.49
A22: 6.1 | D22: REDE DE ÓLEO COMBUSTÍVEL | H22: =TRUNC(SUM(H23:H28),2) -> 69849.17 | J22: =SUM(J23:J28) -> 69849.17
A23: 6.1.1 | B23: P9807 | C23: SICRO3 | D23: Bombeiro hidráulico | E23: h | F23: 160 | G23: 33.85 | H23: =G23*F23 -> 5416 | I23: =$H$2 -> 0 | J23: =TRUNC(G23*(1-I23)*F23,2) -> 5416
A24: 6.1.2 | B24: P9802 | C24: SICRO3 | D24: Ajudante especializado | E24: h | F24: 160 | G24: 26.72 | H24: 4275.2 | I24: 0 | J24: 4275.2
A25: 6.1.3 | B25: M3530 | C25: SICRO3 | D25: Tubo mecânico em aço-carbono | E25: kg | F25: 69.04 | G25: 25.22 | H25: 1741.1888 | I25: 0 | J25: 1741.18
A26: 6.1.4 | B26: 25-PJ.129-20 | C26: Próprio | D26: Tanque de combustível de 2.000 L com acessórios - Fabricação, montagem e instalação | E26: unid | F26: 1 | G26: 20423.56 | H26: 20423.56 | I26: 0 | J26: 20423.56
A27: 6.1.5 | B27: 25-PJ.129-21 | C27: Próprio | D27: Tanque de combustível de 500 L com acessórios - Fabricação, montagem e instalação | E27: unid | F27: 1 | G27: 7114.86 | H27: 7114.86 | I27: 0 | J27: 7114.86
A28: 6.1.6 | B28: M0264 | C28: SICRO3 | D28: Bomba de combustível industrial eletrônica simples | E28: un | F28: 1 | G28: 30878.37 | H28: 30878.37 | I28: 0 | J28: 30878.37
A29: 6.2 | D29: REDE DE ESGOTO | H29: =TRUNC(SUM(H30:H33),2) -> 64858 | J29: =SUM(J30:J33) -> 64858
A30: 6.2.1 | B30: P9807 | C30: SICRO3 | D30: Bombeiro hidráulico | E30: h | F30: 240 | G30: 33.85 | H30: 8124 | I30: =$H$2 -> 0 | J30: =TRUNC(G30*(1-I30)*F30,2) -> 8124
A31: 6.2.2 | B31: P9802 | C31: SICRO3 | D31: Ajudante especializado | E31: h | F31: 240 | G31: 26.72 | H31: 6412.8 | I31: =$H$2 -> 0 | J31: =TRUNC(G31*(1-I31)*F31,2) -> 6412.8
A32: 6.2.3 | B32: M3530 | C32: SICRO3 | D32: Tubo mecânico em aço-carbono | E32: kg | F32: 1460 | G32: 25.22 | H32: 36821.2 | I32: =$H$2 -> 0 | J32: =TRUNC(G32*(1-I32)*F32,2) -> 36821.2
A33: 6.2.4 | B33: 00010592 | C33: SINAPI | D33: BOMBA SUBMERSIVEL, ELETRICA, TRIFASICA, POTENCIA 0,99 HP, DIAMETRO ROTOR 98 MM SEMIABERTO, BOCAL DE SAIDA DIAMETRO 2 POLEGADAS, HM/Q = 2 M / 28,90 M3/H A 14 M / 7 M3/H | E33: UN | F33: 2 | G33: 6750 | H33: 13500 | I33: =$H$2 -> 0 | J33: =TRUNC(G33*(1-I33)*F33,2) -> 13500
A34: 6.3 | D34: REDE DE ÁGUAS CINZAS E NEGRAS | H34: =TRUNC(SUM(H35:H42),2) -> 45898.36 | J34: =SUM(J35:J42) -> 45898.36
A35: 6.3.1 | B35: P9807 | C35: SICRO3 | D35: Bombeiro hidráulico | E35: h | F35: 80 | G35: 33.85 | H35: 2708 | I35: =$H$2 -> 0 | J35: =TRUNC(G35*(1-I35)*F35,2) -> 2708
A36: 6.3.2 | B36: P9802 | C36: SICRO3 | D36: Ajudante especializado | E36: h | F36: 80 | G36: 26.72 | H36: 2137.6 | I36: 0 | J36: 2137.6
A37: 6.3.3 | B37: 00009869 | C37: SINAPI | D37: TUBO PVC, SOLDAVEL, DE 32 MM, AGUA FRIA (NBR-5648) | E37: M | F37: 31.2 | G37: 10.12 | H37: 315.744 | I37: 0 | J37: 315.74
A38: 6.3.4 | B38: 00044260 | C38: SINAPI | D38: TUBO CPVC, SOLDAVEL, 114 MM, AGUA QUENTE (NBR 15884) | E38: M | F38: 15.6 | G38: 424.11 | H38: =TRUNC(G38*F38,2) -> 6616.11 | I38: 0 | J38: 6616.11
A39: 6.3.5 | B39: 00034636 | C39: SINAPI | D39: CAIXA D'AGUA / RESERVATORIO EM POLIETILENO, 1000 LITROS, COM TAMPA | E39: UN | F39: 1 | G39: 492.1 | H39: 492.1 | I39: 0 | J39: 492.1
A40: 6.3.6 | B40: 00010592 | C40: SINAPI | D40: BOMBA SUBMERSIVEL, ELETRICA, TRIFASICA, POTENCIA 0,99 HP, DIAMETRO ROTOR 98 MM SEMIABERTO, BOCAL DE SAIDA DIAMETRO 2 POLEGADAS, HM/Q = 2 M / 28,90 M3/H A 14 M / 7 M3/H | E40: UN | F40: 1 | G40: 6750 | H40: 6750 | I40: 0 | J40: 6750
A41: 6.3.7 | B41: CDV.02 | C41: Próprio | D41: Projeto, fornecimento e instalação de Estação de Tratamento de Esgoto (ETE) | E41: unid | F41: 1 | G41: 9060.49 | H41: 9060.49 | I41: 0 | J41: 9060.49
A42: 6.3.8 | B42: CDV.03 | C42: Próprio | D42: Projeto, fornecimento e instalação de Estação de Tratamento de Água (ETA) | E42: unid | F42: 1 | G42: 17818.32 | H42: 17818.32 | I42: 0 | J42: 17818.32
A43: 6.4 | D43: REDE HIDRÁULICA DO LEME | H43: =TRUNC(SUM(H44:H48),2) -> 50609.96 | J43: =SUM(J44:J48) -> 50609.96
A44: 6.4.1 | B44: P9807 | C44: SICRO3 | D44: Bombeiro hidráulico | E44: h | F44: 200 | G44: 33.85 | H44: =TRUNC(G44*F44,2) -> 6770 | I44: =$H$2 -> 0 | J44: =TRUNC(G44*(1-I44)*F44,2) -> 6770
A45: 6.4.2 | B45: P9807 | C45: SICRO3 | D45: Bombeiro hidráulico | E45: h | F45: 200 | G45: 33.85 | H45: 6770 | I45: =$H$2 -> 0 | J45: =TRUNC(G45*(1-I45)*F45,2) -> 6770
A46: 6.4.3 | B46: M1765 | C46: SICRO3 | D46: Tubo em aço-carbono schedule 40 - D = 65 mm (2 1/2") | E46: m | F46: 20 | G46: 118.77 | H46: 2375.4 | I46: =$H$2 -> 0 | J46: =TRUNC(G46*(1-I46)*F46,2) -> 2375.4
A47: 6.4.4 | B47: 25-PJ.129-22 | C47: Próprio | D47: Tanque de óleo hidráulico de 250 L com acessórios - Fabricação, montagem e instalação | E47: unid | F47: 1 | G47: 23278.2 | H47: 23278.2 | I47: =$H$2 -> 0 | J47: =TRUNC(G47*(1-I47)*F47,2) -> 23278.2
A48: 6.4.5 | B48: 25-PJ.129-E34 | C48: Próprio | D48: Unidade hidráulica elétrica 160 bar (máquina do leme) | E48: unid | F48: 1 | G48: 11416.36 | H48: =TRUNC(G48*F48,2) -> 11416.36 | I48: =$H$2 -> 0 | J48: =TRUNC(G48*(1-I48)*F48,2) -> 11416.36
A49: 7 | D49: SISTEMA ELÉTRICO | H49: =TRUNC(SUM(H50:H52),2) -> 55392.53 | J49: =SUM(J50:J52) -> 55392.53
A50: 7.1 | B50: 25-PJ.129-08 | C50: Próprio | D50: Instalação de equipamentos de navegação | E50: unid | F50: 1 | G50: 41019.05 | H50: 41019.05 | I50: =$H$2 -> 0 | J50: =TRUNC(G50*(1-I50)*F50,2) -> 41019.05
A51: 7.2 | B51: 25-PJ.129-07 | C51: Próprio | D51: Instalação elétrica básica | E51: unid | F51: 1 | G51: 12247.89 | H51: 12247.89 | I51: =$H$2 -> 0 | J51: =TRUNC(G51*(1-I51)*F51,2) -> 12247.89
A52: 7.3 | B52: 103249 | C52: SINAPI | D52: AR CONDICIONADO SPLIT ON/OFF, HI-WALL (PAREDE), 12000 BTUS/H, CICLO QUENTE/FRIO - FORNECIMENTO E INSTALAÇÃO. AF_11/2021_PE | E52: UN | F52: 1 | G52: 2125.59 | H52: 2125.59 | I52: =$H$2 -> 0 | J52: =TRUNC(G52*(1-I52)*F52,2) -> 2125.59
A53: 8 | D53: MÁQUINAS E EQUIPAMENTOS | H53: =TRUNC(SUM(H54:H56),2) -> 434331.91 | J53: =SUM(J54:J56) -> 434331.91
A54: 8.1 | B54: 25-PJ.129-05 | C54: Próprio | D54: Sistema de ventilação da praça de máquinas e descarga do motor de propulsão | E54: unid | F54: 1 | G54: 29956.45 | H54: 29956.45 | I54: =$H$2 -> 0 | J54: =TRUNC(G54*(1-I54)*F54,2) -> 29956.45
A55: 8.2 | B55: 25-PJ.129-12 | C55: Próprio | D55: Fornecimento e instalação de motor de propulsão de 450 HP com reversor 4:1, incluso o fornecimento e alinhamento de eixo propulsor | E55: unid | F55: 1 | G55: 344436.99 | H55: 344436.99 | I55: =$H$2 -> 0 | J55: =TRUNC(G55*(1-I55)*F55,2) -> 344436.99
A56: 8.3 | B56: 25-PJ.129-23 | C56: Próprio | D56: Fornecimento e instalação de grupo gerador de 30 kVA | E56: unid | F56: 1 | G56: 59938.47 | H56: 59938.47 | I56: =$H$2 -> 0 | J56: =TRUNC(G56*(1-I56)*F56,2) -> 59938.47
A57: 9 | D57: SEGURANÇA E SALVATAGEM | H57: =TRUNC(SUM(H58:H60),2) -> 38899.88 | J57: =SUM(J58:J60) -> 38899.88
A58: 9.1 | B58: 25-PJ.129-09 | C58: Próprio | D58: Itens de salvatagem com identificação (nome da embarcação, porto e número de inscrição) | E58: unid | F58: 1 | G58: 37396.07 | H58: 37396.07 | I58: =$H$2 -> 0 | J58: =TRUNC(G58*(1-I58)*F58,2) -> 37396.07
A59: 9.2 | B59: 101908 | C59: SINAPI | D59: EXTINTOR DE INCÊNDIO PORTÁTIL COM CARGA DE PQS DE 4 KG, CLASSE BC - FORNECIMENTO E INSTALAÇÃO. AF_10/2020_PE | E59: UN | F59: 7 | G59: 176.03 | H59: 1232.21 | I59: =$H$2 -> 0 | J59: =TRUNC(G59*(1-I59)*F59,2) -> 1232.21
A60: 9.3 | B60: 101911 | C60: SINAPI | D60: EXTINTOR DE INCÊNDIO PORTÁTIL COM CARGA DE PQS DE 12 KG, CLASSE BC - FORNECIMENTO E INSTALAÇÃO. AF_10/2020_PE | E60: UN | F60: 1 | G60: 271.6 | H60: =TRUNC(G60*F60,2) -> 271.6 | I60: =$H$2 -> 0 | J60: =TRUNC(G60*(1-I60)*F60,2) -> 271.6
A61: 10 | D61: ACABAMENTO | H61: =TRUNC(SUM(H62:H63),2) -> 9128.25 | J61: =SUM(J62:J63) -> 9128.25
A62: 10.1 | B62: 25-PJ.129-26 | C62: Próprio | D62: Fornecimento e instalação das esquadrias (comando, banheiro e paiol) | E62: unid | F62: 1 | G62: 5773.07 | H62: =TRUNC(G62*F62,2) -> 5773.07 | I62: =$H$2 -> 0 | J62: =TRUNC(G62*(1-I62)*F62,2) -> 5773.07
A63: 10.2 | B63: 25-PJ.129-27 | C63: Próprio | D63: Fornecimento e instalação de cerâmica e porcelanato (banheiro e lavatório externo) | E63: unid | F63: 1 | G63: 3355.18 | H63: =TRUNC(G63*F63,2) -> 3355.18 | I63: =$H$2 -> 0 | J63: =TRUNC(G63*(1-I63)*F63,2) -> 3355.18
A64: 11 | D64: SERVIÇOS COMPLEMENTARES | H64: =TRUNC(SUM(H65:H67),2) -> 82288.03 | J64: =TRUNC(SUM(J65:J67),2) -> 82288.03
A65: 11.1 | B65: 25-PJ.129-04 | C65: Próprio | D65: Elaboração do projeto executivo e manuais | E65: un | F65: 1 | G65: 35967.27 | H65: =TRUNC(G65*F65,2) -> 35967.27 | I65: =$H$2 -> 0 | J65: =TRUNC(G65*(1-I65)*F65,2) -> 35967.27
A66: 11.2 | B66: 25-PJ.129-10 | C66: Próprio | D66: Comissionamento (prova de mar, prova de máquinas e entrega técnica) | E66: unid | F66: 1 | G66: 5254.46 | H66: =TRUNC(G66*F66,2) -> 5254.46 | I66: =$H$2 -> 0 | J66: =TRUNC(G66*(1-I66)*F66,2) -> 5254.46
A67: 11.3 | B67: 25-PJ.129-11 | C67: Próprio | D67: Transporte fluvial da embarcação | E67: dia | F67: 5 | G67: 8213.26 | H67: =TRUNC(G67*F67,2) -> 41066.3 | I67: =$H$2 -> 0 | J67: =TRUNC(G67*(1-I67)*F67,2) -> 41066.3
G68: Custo total | H68: =SUM(H64,H61,H57,H49,H21,H18,H13,H8,H6,H4,H53) -> 6656679.75 | I68: Preço de Venda (Calculado pela soma do Custo Total de cada item, com BDI e com Desconto linear) | J68: =SUM(J64,J61,J57,J53,J49,J21,J18,J13,J8,J6,J4)*(1+F2) -> 8808784.313
G71: Valor Global (Calculado pelo Custo total mais BDI) - Conforme Seção 10 do Termo de Referência | H71: =H68*(1+F2) -> 8808784.313 | J71: =H71*(100%-Desconto!C3) -> 8808784.313
